bitfinex/quotes_BTCUSD_20250826
["timestamp","ask_amount","ask_price","bid_price","bid_amount"]
[1756166845415,0.52388512,110020.0,110010.0,0.17048]
[1756166845658,0.34,110020.0,110010.0,0.35431165]
[1756166846119,0.52373512,110020.0,110010.0,0.35228165]
[1756166846384,0.52373512,110020.0,110010.0,0.17048]
[1756166846611,0.52686512,110020.0,110010.0,0.17048]
[1756166847290,0.52686512,110020.0,110010.0,0.002]
[1756166847512,5.52686512,110020.0,110010.0,0.17032]
[1756166847939,5.52686512,110020.0,110010.0,0.002]
[1756166848417,5.52686512,110020.0,110010.0,0.001]
[1756166848418,5.54378758,110020.0,110010.0,0.001]
[1756166848636,5.55801185,110020.0,110010.0,0.001]
[1756166848871,0.52180165,110010.0,110000.0,0.16828]
[1756166849056,5.52180165,110010.0,110000.0,0.35009818]
[1756166849315,0.52180165,110010.0,110000.0,0.35212818]
[1756166849539,0.18181818,110000.0,109990.0,0.06992]
[1756166849778,0.18689818,110000.0,109990.0,0.2382]
[1756166850455,0.20112455,110000.0,109990.0,0.2382]
[1756166850668,0.19799455,110000.0,109990.0,0.42003471]
[1756166850882,0.19799455,110000.0,109990.0,0.42206471]
[1756166850883,0.01422637,110000.0,109990.0,0.42206471]
[1756166851108,0.01422637,110000.0,109990.0,0.42627471]
[1756166851587,0.01422637,110000.0,109990.0,0.42727471]
[1756166852779,0.18350907,110010.0,109990.0,0.42727471]
[1756166852780,0.18180176,110010.0,109990.0,0.42727471]
[1756166852992,0.19873526,110010.0,110000.0,0.18181818]
[1756166853476,0.19873526,110010.0,109990.0,0.25696471]
[1756166853697,0.34,110000.0,109990.0,0.25175471]
[1756166853947,0.34,110000.0,109990.0,0.42182471]
[1756166854160,0.34,110000.0,109990.0,0.42503471]
[1756166854949,0.34,110000.0,109990.0,0.42603471]
[1756166855402,0.34,110000.0,109990.0,0.42703471]
[1756166856015,0.18180176,110010.0,109990.0,0.42703471]
[1756166856222,0.20187155,110010.0,109990.0,0.42382471]
[1756166856396,0.19874155,110010.0,109990.0,0.42382471]
[1756166856979,0.20187155,110010.0,109990.0,0.25175471]
[1756166857186,0.21609621,110010.0,110000.0,0.16764]
[1756166857405,0.21296621,110010.0,110000.0,0.35148818]
[1756166857609,0.03117078,110010.0,110000.0,0.35148818]
[1756166858182,0.03117078,110010.0,110000.0,0.35469818]
[1756166858591,0.01422466,110010.0,110000.0,0.35469818]
[1756166858802,0.21806254,110010.0,109990.0,0.25175471]
[1756166859035,0.18494818,110000.0,109990.0,0.06992]
[1756166859241,0.18689818,110000.0,109990.0,0.2374]
[1756166859384,0.18689818,110000.0,109990.0,0.06992]
[1756166859590,0.18689818,110000.0,109990.0,0.23732]
[1756166860258,0.20385723,110000.0,109990.0,0.23832]
[1756166860409,0.20385723,110000.0,109990.0,0.23824]
[1756166860410,0.54385723,110000.0,109990.0,0.23824]
[1756166860615,0.54385723,110000.0,109990.0,0.23924]
[1756166861174,0.54385723,110000.0,109990.0,0.07192]
[1756166861362,0.54385723,110000.0,109990.0,0.23924]
[1756166862353,0.53877723,110000.0,109990.0,0.24127]
[1756166862540,0.53877723,110000.0,109990.0,0.42310471]
[1756166862775,0.52181818,110000.0,109990.0,0.42310471]
[1756166863188,0.34,110000.0,109990.0,0.42310471]
[1756166863402,0.01422466,110010.0,110000.0,0.18181818]
[1756166863613,0.01422466,110010.0,110000.0,0.18705818]
[1756166863822,0.52180165,110010.0,110000.0,0.18384818]
[1756166864031,0.53875653,110010.0,110000.0,0.18384818]
[1756166864279,0.52180165,110010.0,110000.0,0.18384818]
[1756166864490,0.35695478,110010.0,110000.0,0.18384818]
[1756166864684,0.52180165,110010.0,110000.0,0.18384818]
[1756166864892,0.53875622,110010.0,110000.0,0.18384818]
[1756166865089,0.53875622,110010.0,110000.0,0.34873818]
[1756166865266,0.54350622,110010.0,110000.0,0.16692]
[1756166865617,0.53875622,110010.0,110000.0,0.35076818]
[1756166866035,0.18181818,110000.0,109990.0,0.06992]
[1756166866259,0.18348818,110000.0,109990.0,0.23672]
[1756166866470,0.18656818,110000.0,109990.0,0.23668]
[1756166866781,0.53702623,110010.0,109990.0,0.42054471]
[1756166866992,0.18181818,110000.0,109990.0,0.42054471]
[1756166867849,0.54015623,110010.0,109990.0,0.42054471]
[1756166868060,0.03217922,110010.0,110000.0,0.18900268]
[1756166868275,0.01422458,110010.0,110000.0,0.18705818]
[1756166868484,0.01422458,110010.0,110000.0,0.18384818]
[1756166869370,0.01422458,110010.0,110000.0,0.18705818]
[1756166870228,0.01522458,110010.0,110000.0,0.18705818]
[1756166870436,0.01422458,110010.0,110000.0,0.18705818]
[1756166870910,0.01422458,110010.0,110000.0,0.18805818]
[1756166871095,0.01422458,110010.0,110000.0,0.54264293]
[1756166871537,0.01422458,110010.0,110000.0,0.54764293]
[1756166871718,0.1817859,110020.0,110010.0,0.18180165]
[1756166871956,0.19875681,110020.0,110010.0,0.18180165]
[1756166872069,0.01892091,110020.0,110010.0,0.18180165]
[1756166872471,0.20070603,110020.0,110010.0,0.18180165]
[1756166873179,0.01697091,110020.0,110010.0,0.18383165]
[1756166873384,0.01697503,110020.0,110010.0,0.18383165]
[1756166873588,0.52181619,110030.0,110020.0,0.18178512]
[1756166873803,0.18686512,110020.0,110010.0,0.18480165]
[1756166874008,0.20070973,110020.0,110010.0,0.35120165]
[1756166874220,0.52494619,110030.0,110010.0,0.35323165]
[1756166874429,0.18178512,110020.0,110010.0,0.35323165]
[1756166874550,0.18178512,110020.0,110010.0,0.35223165]
[1756166874962,0.84,110010.0,109990.0,0.06992]
[1756166875170,0.18184054,109990.0,109970.0,0.26087873]
[1756166875372,0.52394124,109980.0,109970.0,0.06992]
[1756166875584,0.52711124,109980.0,109940.0,0.44003593]
[1756166875797,0.52189603,109960.0,109950.0,0.06992]
[1756166875998,0.52398603,109960.0,109950.0,0.23832]
[1756166876205,0.52715603,109960.0,109950.0,0.23836]
[1756166876509,0.52720357,109960.0,109950.0,0.23836]
[1756166876944,0.52403357,109960.0,109950.0,0.23836]
[1756166877137,0.52403357,109960.0,109950.0,0.24136]
[1756166877568,0.52403357,109960.0,109950.0,0.24336]
[1756166877772,0.52720357,109960.0,109950.0,0.005]
[1756166878001,5.52720357,109960.0,109950.0,0.005]
[1756166878226,5.54143473,109960.0,109950.0,0.005]
[1756166878773,5.5552627,109960.0,109950.0,0.003]
[1756166878990,5.5826227,109960.0,109950.0,0.003]
[1756166880067,0.34,109940.0,109930.0,0.42910963]
[1756166880280,0.5219174,109940.0,109930.0,0.42199294]
[1756166880493,0.5219174,109940.0,109930.0,0.42517294]
[1756166880706,0.34,109940.0,109930.0,0.42517294]
[1756166881132,0.18191566,109950.0,109930.0,0.42517294]
[1756166881579,0.1819174,109940.0,109930.0,0.24206]
[1756166882098,0.1840074,109940.0,109930.0,0.24]
[1756166882317,0.1819174,109940.0,109930.0,0.42391395]
[1756166882528,0.1819174,109940.0,109930.0,0.42709395]
[1756166883166,0.18191566,109950.0,109930.0,0.42897395]
[1756166883384,0.1819174,109940.0,109930.0,0.42697395]
[1756166883815,0.1819174,109940.0,109930.0,0.42797395]
[1756166884065,0.1819174,109940.0,109930.0,0.24286]
[1756166884265,0.1819174,109940.0,109930.0,0.24086]
[1756166884517,0.52190214,109950.0,109940.0,0.1819174]
[1756166884741,0.34,109950.0,109940.0,0.1870774]
[1756166885223,0.52190086,109950.0,109940.0,0.1870774]
[1756166885455,0.52190086,109950.0,109940.0,0.3516574]
[1756166886522,0.52190086,109950.0,109940.0,0.3548374]
[1756166886732,0.34,109950.0,109940.0,0.3548374]
[1756166886948,0.01387551,109960.0,109950.0,0.18190086]
[1756166887165,0.01387551,109960.0,109950.0,0.18706086]
[1756166887382,0.18190755,109970.0,109950.0,0.18706086]
[1756166887587,0.18190755,109970.0,109960.0,0.1676]
[1756166887841,0.68505432,109960.0,109950.0,0.00014385]
[1756166888071,5.52714432,109960.0,109950.0,0.00014385]
[1756166888736,0.52397432,109960.0,109950.0,0.00212385]
[1756166888959,0.52188432,109960.0,109950.0,0.00212385]
[1756166889417,0.34,109960.0,109950.0,0.18402471]
[1756166889652,0.34,109960.0,109950.0,0.18720471]
[1756166889877,0.01607195,109970.0,109960.0,0.18188432]
[1756166890109,0.01607195,109970.0,109960.0,0.42688432]
[1756166890774,0.19412621,110000.0,109980.0,0.18185124]
[1756166891017,0.01693483,110000.0,109990.0,0.35369471]
[1756166891207,0.69875301,110000.0,109990.0,0.35369471]
[1756166891457,5.01693483,110000.0,109990.0,0.35369471]
[1756166891679,0.01693483,110000.0,109990.0,0.35369471]
[1756166891886,0.20521699,110010.0,110000.0,0.18181818]
[1756166892169,0.01693521,110010.0,110000.0,0.18697818]
[1756166892387,0.18186548,110040.0,110020.0,0.17329624]
[1756166892388,0.18175366,110040.0,110020.0,0.17329624]
[1756166892610,0.1817686,110030.0,110020.0,0.07223231]
[1756166892828,0.54717036,110030.0,110020.0,0.2417]
[1756166893017,0.54717036,110030.0,110020.0,0.07194]
[1756166893258,0.54717036,110030.0,110020.0,0.23972]
[1756166893259,0.54926036,110030.0,110020.0,0.23972]
[1756166893494,0.20926036,110030.0,110020.0,0.23972]
[1756166893715,0.54926036,110030.0,110020.0,0.23972]
[1756166893928,0.54926036,110030.0,110020.0,0.23964]
[1756166893929,0.55243036,110030.0,110020.0,0.23964]
[1756166894148,0.18181347,110010.0,109980.0,0.1941238]
[1756166894357,0.52352549,110000.0,109990.0,0.06996]
[1756166894545,0.52390818,110000.0,109990.0,0.23988]
[1756166894790,0.34,110000.0,109990.0,0.42369471]
[1756166894998,0.52181818,110000.0,109990.0,0.07194]
[1756166895215,0.52181818,110000.0,109990.0,0.42171471]
[1756166895420,0.52181818,110000.0,109990.0,0.42369471]
[1756166896060,0.52181818,110000.0,109990.0,0.42569471]
[1756166896266,0.34,110000.0,109990.0,0.42569471]
[1756166896469,0.52181818,110000.0,109990.0,0.42569471]
[1756166896926,0.52390818,110000.0,109990.0,0.2446]
[1756166897395,0.01401134,110040.0,110020.0,0.18178512]
[1756166897645,0.02553879,110040.0,110030.0,0.43050155]
[1756166897849,0.02553879,110040.0,110030.0,0.2478486]
[1756166898074,0.55425819,110040.0,110030.0,0.2396]
[1756166898293,0.21255088,110040.0,110030.0,0.2396]
[1756166898730,0.55255088,110040.0,110030.0,0.2396]
[1756166898949,0.21255088,110040.0,110030.0,0.4213686]
[1756166899167,0.21255088,110040.0,110030.0,0.4223686]
[1756166899603,0.55255088,110040.0,110030.0,0.07096]
[1756166900080,5.7395999,110040.0,110030.0,0.001]
[1756166900293,5.74593037,110040.0,110030.0,0.001]
[1756166900534,5.56998528,110040.0,110030.0,0.001]
[1756166900748,5.72217626,110040.0,110030.0,0.001]
[1756166901255,0.1817686,110030.0,110010.0,0.36053097]
[1756166901501,0.84170731,110020.0,110010.0,0.35144089]
[1756166901741,0.35692024,110020.0,110010.0,0.35144089]
[1756166901954,0.53870536,110020.0,110010.0,0.18180089]
[1756166902167,0.53870536,110020.0,110000.0,0.43614011]
[1756166902384,5.18350896,110010.0,110000.0,0.16952]
[1756166902597,0.52180165,110010.0,110000.0,0.16952]
[1756166902809,0.54081972,110010.0,110000.0,0.16952]
[1756166903438,0.54081972,110010.0,109990.0,0.06996]
[1756166903439,0.18181818,110000.0,109990.0,0.06996]
[1756166903652,0.52390818,110000.0,109990.0,0.23944]
[1756166904305,0.52707818,110000.0,109990.0,0.23944]
[1756166904520,0.1818562,109980.0,109970.0,0.06992]
[1756166904766,0.1818562,109980.0,109970.0,0.2392]
[1756166904767,0.1839462,109980.0,109970.0,0.2392]
[1756166904956,0.5239462,109980.0,109970.0,0.2392]
[1756166905181,0.52185124,109980.0,109970.0,0.2392]
[1756166905607,0.5359344,109980.0,109970.0,0.2392]
[1756166905804,0.5379144,109980.0,109970.0,0.2392]
[1756166906126,0.5359344,109980.0,109970.0,0.42106778]
[1756166906350,0.3065364,109980.0,109970.0,0.42206778]
[1756166906565,0.1959344,109980.0,109970.0,0.42206778]
[1756166906782,0.1959344,109980.0,109970.0,0.42306778]
[1756166907001,0.1959344,109980.0,109970.0,0.42515778]
[1756166907891,0.01408316,109980.0,109970.0,0.42838778]
[1756166908322,0.18185222,109990.0,109970.0,0.42838778]
[1756166908756,0.19590435,109990.0,109970.0,0.42838778]
[1756166909177,0.18355855,109980.0,109970.0,0.42306778]
[1756166909399,0.18185124,109980.0,109970.0,0.2392]
[1756166909610,0.18383124,109980.0,109970.0,0.42106778]
[1756166909814,0.18383124,109980.0,109970.0,0.2392]
[1756166910457,0.18185124,109980.0,109970.0,0.42415778]
[1756166910689,0.19887435,109990.0,109970.0,0.35423778]
[1756166910909,5.68850855,109980.0,109970.0,0.1696]
[1756166911155,0.18680124,109980.0,109970.0,0.1696]
[1756166911803,0.18680124,109980.0,109970.0,0.1686]
[1756166913811,0.18680124,109980.0,109920.0,0.06996]
[1756166913812,0.18193395,109930.0,109920.0,0.06996]
[1756166914270,0.18193395,109930.0,109920.0,0.25057]
[1756166914483,0.18193395,109930.0,109920.0,0.24848]
[1756166914699,0.18193395,109930.0,109920.0,0.25057]
[1756166914922,0.18193395,109930.0,109920.0,0.06996]
[1756166915169,0.52193395,109930.0,109920.0,0.24852]
[1756166915380,0.34,109930.0,109920.0,0.43593435]
[1756166915816,0.52193395,109930.0,109920.0,0.25398385]
[1756166916313,0.34,109930.0,109920.0,0.43593435]
[1756166916545,0.52193395,109930.0,109920.0,0.25398385]
[1756166917190,0.52193395,109930.0,109920.0,0.43593435]
[1756166917665,0.54433297,109930.0,109890.0,0.0002]
[1756166917926,0.52200018,109890.0,109880.0,1e-08]
[1756166918155,0.52200018,109890.0,109880.0,0.00047953]
[1756166918156,5.59394018,109890.0,109880.0,0.00047953]
[1756166918408,5.6113892,109890.0,109880.0,0.00047953]
[1756166918635,5.7963302,109890.0,109880.0,0.00047953]
[1756166918863,0.1,109870.0,109860.0,0.0002]
[1756166919093,5.62572062,109870.0,109860.0,0.00034388]
[1756166919318,5.52698331,109870.0,109860.0,0.00034388]
[1756166919562,5.54443233,109870.0,109860.0,0.00034388]
[1756166919797,5.70522331,109870.0,109860.0,0.00034388]
[1756166920008,5.54100658,109870.0,109860.0,0.00034388]
[1756166920806,5.54100658,109870.0,109860.0,0.00243388]
[1756166920807,5.55030168,109870.0,109860.0,0.00243388]
[1756166921087,0.54100658,109870.0,109860.0,0.00034388]
[1756166921302,5.71916658,109870.0,109860.0,0.00034388]
[1756166921526,5.53803658,109870.0,109860.0,0.00034388]
[1756166921739,5.53803658,109870.0,109860.0,0.00134388]
[1756166921946,5.54100658,109870.0,109860.0,0.00034388]
[1756166922164,5.54400658,109870.0,109860.0,0.00034388]
[1756166922839,5.54200658,109870.0,109860.0,0.00734388]
[1756166923041,5.71707658,109870.0,109860.0,0.00734388]
[1756166923248,5.72550691,109870.0,109860.0,0.00734388]
[1756166923479,5.53903658,109870.0,109860.0,0.00734388]
[1756166923687,0.53705658,109870.0,109860.0,0.01266388]
[1756166924144,0.53605658,109870.0,109860.0,0.00034388]
[1756166924386,0.53605658,109870.0,109860.0,0.00334388]
[1756166925184,0.54448424,109870.0,109860.0,0.00434388]
[1756166925417,0.54448424,109870.0,109860.0,0.00134388]
[1756166925626,0.36245093,109870.0,109860.0,0.18948376]
[1756166925833,0.53605658,109870.0,109860.0,0.19271376]
[1756166926051,0.01402327,109870.0,109860.0,0.19271376]
[1756166926487,0.69046,109870.0,109860.0,0.01066388]
[1756166926724,5.19244,109870.0,109860.0,0.00534388]
[1756166926932,5.53541,109870.0,109860.0,0.00534388]
[1756166927366,5.72668215,109870.0,109860.0,0.00534388]
[1756166927795,5.74353022,109870.0,109860.0,0.00534388]
[1756166928024,5.74353022,109870.0,109860.0,0.00134388]
[1756166928444,5.74353022,109870.0,109860.0,0.00334388]
[1756166928445,5.72667992,109870.0,109860.0,0.00334388]
[1756166928657,5.75488458,109870.0,109860.0,0.00034388]
[1756166928861,5.75785458,109870.0,109860.0,0.00034388]
[1756166929065,5.75785458,109870.0,109860.0,0.00134388]
[1756166929489,5.57538458,109870.0,109860.0,0.00134388]
[1756166929732,5.57638458,109870.0,109860.0,0.00343388]
[1756166929948,5.03750186,109870.0,109860.0,0.18871376]
[1756166930428,0.00942446,109870.0,109860.0,0.34559851]
[1756166930689,0.00228446,109870.0,109860.0,0.34559851]
[1756166930925,0.00228446,109870.0,109860.0,0.34459851]
[1756166931151,1e-08,109870.0,109860.0,0.35059851]
[1756166931385,1e-08,109870.0,109860.0,0.45059851]
[1756166931619,0.5,109920.0,109910.0,0.18196706]
[1756166931850,0.5,109920.0,109910.0,0.42956706]
[1756166931851,5.5,109920.0,109910.0,0.42956706]
[1756166932096,5.01686596,109920.0,109910.0,0.42956706]
[1756166932320,0.01686596,109920.0,109910.0,0.42956706]
[1756166932539,0.51686596,109920.0,109910.0,0.42956706]
[1756166932756,5.51686596,109920.0,109910.0,0.42956706]
[1756166932974,0.01686596,109920.0,109910.0,0.2520146]
[1756166933183,0.51686596,109920.0,109910.0,0.4294546]
[1756166933395,5.51686596,109920.0,109910.0,0.4294546]
[1756166933633,0.01686596,109920.0,109910.0,0.4294546]
[1756166933844,0.51686596,109920.0,109910.0,0.4294546]
[1756166934072,5.51686596,109920.0,109910.0,0.42353036]
[1756166934301,0.03630113,109920.0,109910.0,0.40278997]
[1756166934526,0.53630113,109920.0,109910.0,0.40678997]
[1756166934747,5.53630113,109920.0,109910.0,0.40778997]
[1756166934967,0.03630113,109920.0,109910.0,0.40778997]
[1756166936879,0.22515894,109920.0,109910.0,0.22530291]
[1756166937112,0.56345163,109920.0,109910.0,0.04838291]
[1756166937338,0.56978386,109920.0,109910.0,0.00504754]
[1756166937564,0.59417004,109920.0,109910.0,0.00504754]
[1756166937777,5.59417004,109920.0,109910.0,0.00504754]
[1756166938000,5.59418963,109920.0,109910.0,0.00504754]
[1756166938223,5.59418963,109920.0,109910.0,0.00404754]
[1756166938496,5.59419547,109920.0,109910.0,4.754e-05]
[1756166938718,0.52201371,109890.0,109870.0,0.34300058]
[1756166938931,0.56142038,109890.0,109880.0,0.00014388]
[1756166939381,0.56354038,109890.0,109880.0,0.00014388]
[1756166939858,0.37940667,109890.0,109880.0,0.18216062]
[1756166940050,0.0168915,109890.0,109880.0,0.18216062]
[1756166940296,0.0168915,109890.0,109880.0,0.26904537]
[1756166940535,0.0168915,109890.0,109880.0,0.44560537]
[1756166940962,0.34308,109910.0,109900.0,0.18198362]
[1756166941197,0.37635504,109910.0,109900.0,0.35854362]
[1756166941434,0.18198362,109900.0,109890.0,0.18199768]
[1756166941667,0.02265866,109900.0,109890.0,0.35847768]
[1756166942360,0.0226793,109900.0,109890.0,0.35847768]
[1756166942575,0.0311351,109900.0,109890.0,0.35847768]
[1756166942806,0.0311351,109900.0,109890.0,0.36347768]
[1756166943019,0.0311351,109900.0,109890.0,0.36547768]
[1756166944769,0.0311351,109900.0,109890.0,0.36499768]
[1756166946370,0.02795674,109900.0,109890.0,0.36499768]
[1756166946794,0.01948189,109900.0,109890.0,0.36487768]
[1756166947007,0.03103734,109900.0,109890.0,0.36487768]
[1756166947215,0.03431714,109900.0,109890.0,0.36487768]
[1756166947610,0.03739714,109900.0,109890.0,0.18899768]
[1756166947866,0.03431714,109900.0,109890.0,0.36483768]
[1756166948132,0.03431714,109900.0,109890.0,0.0005]
[1756166948133,5.58752947,109900.0,109890.0,0.0005]
[1756166948348,5.58752947,109900.0,109880.0,0.00014388]
[1756166948349,0.52200018,109890.0,109880.0,0.00014388]
[1756166948564,5.61848579,109890.0,109880.0,0.00014388]
[1756166948777,5.58593247,109890.0,109880.0,0.00014388]
[1756166949004,0.58285247,109890.0,109880.0,0.00014388]
[1756166949220,0.58285247,109890.0,109880.0,0.17798388]
[1756166949401,5.58593247,109890.0,109880.0,0.17798388]
[1756166949649,5.58593247,109890.0,109880.0,0.00014388]
[1756166949864,5.58593247,109890.0,109880.0,0.00114388]
[1756166950074,5.58593247,109890.0,109880.0,0.00014388]
[1756166950734,5.79604579,109890.0,109880.0,0.00014388]
[1756166950948,5.77163064,109890.0,109880.0,0.00014388]
[1756166951195,5.78907966,109890.0,109880.0,0.00014388]
[1756166951637,0.52203331,109870.0,109860.0,0.1778]
[1756166951848,0.55211065,109870.0,109860.0,0.17794399]
[1756166952059,0.55519065,109870.0,109860.0,0.00034399]
[1756166952506,0.57959105,109870.0,109860.0,0.00034399]
[1756166952722,5.5859433,109870.0,109860.0,0.00034399]
[1756166952937,5.57959105,109870.0,109860.0,0.00034399]
[1756166953352,0.54999065,109870.0,109860.0,0.00246399]
[1756166953573,0.55211065,109870.0,109860.0,0.00034399]
[1756166953783,5.57212927,109870.0,109860.0,0.00034399]
[1756166953996,5.59652967,109870.0,109860.0,0.00034399]
[1756166954175,5.57212927,109870.0,109860.0,0.00034399]
[1756166954413,5.60288,109870.0,109860.0,0.00134399]
[1756166954615,5.59344967,109870.0,109860.0,0.00134399]
[1756166954829,5.57212927,109870.0,109860.0,0.00034399]
[1756166955258,5.62032864,109870.0,109860.0,0.00034399]
[1756166955489,5.60339002,109870.0,109860.0,0.00034399]
[1756166955698,5.62030801,109870.0,109860.0,0.00134399]
[1756166955846,5.65284188,109870.0,109860.0,0.00134399]
[1756166956061,5.65284501,109870.0,109860.0,0.00134399]
[1756166956280,5.83004501,109870.0,109860.0,0.00134399]
[1756166956457,5.83004243,109870.0,109860.0,0.00034399]
[1756166956689,5.83104243,109870.0,109860.0,0.00034399]
[1756166956888,5.79850856,109870.0,109860.0,0.00034399]
[1756166957087,0.52206645,109850.0,109840.0,0.17736]
[1756166957381,5.65963874,109850.0,109840.0,0.0002]
[1756166957793,5.62718016,109850.0,109840.0,0.0002]
[1756166957979,5.82258918,109850.0,109840.0,0.0002]
[1756166958188,5.83882385,109850.0,109840.0,0.0002]
[1756166958386,5.75633228,109850.0,109840.0,0.0002]
[1756166958592,5.81338559,109850.0,109840.0,0.0022]
[1756166958815,5.83660357,109850.0,109840.0,0.0042]
[1756166959036,5.83660357,109850.0,109840.0,0.0002]
[1756166959450,5.65876357,109850.0,109840.0,0.0002]
[1756166959654,5.64131455,109850.0,109840.0,0.0002]
[1756166959861,5.82139455,109850.0,109840.0,0.0002]
[1756166960502,5.83884357,109850.0,109840.0,0.0002]
[1756166960941,5.69515575,109850.0,109840.0,0.0002]
[1756166961183,5.80411006,109850.0,109840.0,0.0002]
[1756166961396,5.67250673,109850.0,109840.0,0.00534]
[1756166961609,5.61577025,109850.0,109840.0,0.00232]
[1756166962258,0.0937038,109850.0,109840.0,0.36670302]
[1756166962600,0.07283123,109850.0,109840.0,0.43674302]
[1756166962834,0.04583155,109850.0,109840.0,0.43674302]
[1756166963049,0.04583155,109850.0,109840.0,0.43774302]
[1756166963250,0.04580232,109850.0,109840.0,0.43774302]
[1756166963458,0.04580232,109850.0,109840.0,0.43674302]
[1756166963665,0.04580232,109850.0,109840.0,0.43974302]
[1756166964121,0.04480232,109850.0,109840.0,0.43974302]
[1756166964336,0.22686877,109850.0,109840.0,0.25844302]
[1756166964542,0.22686877,109850.0,109840.0,0.43760302]
[1756166964775,0.04480232,109850.0,109840.0,0.43962302]
[1756166964973,0.04480232,109850.0,109840.0,0.43662302]
[1756166964974,0.02532698,109850.0,109840.0,0.43662302]
[1756166965183,0.02532698,109850.0,109840.0,0.43862302]
[1756166965396,0.02532698,109850.0,109840.0,0.44262302]
[1756166965609,0.02532777,109850.0,109840.0,0.44262302]
[1756166966032,0.02532777,109850.0,109840.0,0.26346302]
[1756166966452,0.02532777,109850.0,109840.0,0.44246302]
[1756166967666,0.20941422,109850.0,109840.0,0.25524]
[1756166967872,0.20739422,109850.0,109840.0,0.43732302]
[1756166968086,0.02532777,109850.0,109840.0,0.44237302]
[1756166968303,0.20739422,109850.0,109840.0,0.44237302]
[1756166968524,0.02532777,109850.0,109840.0,0.44237302]
[1756166969823,0.20739422,109850.0,109840.0,0.07624]
[1756166970073,0.20739422,109850.0,109840.0,0.44007302]
[1756166970270,0.02532777,109850.0,109840.0,0.44305302]
[1756166970704,0.02532777,109850.0,109840.0,0.44105302]
[1756166971135,0.02532777,109850.0,109840.0,0.44205302]
[1756166971314,0.02532777,109850.0,109840.0,0.43805302]
[1756166971516,0.02532777,109850.0,109840.0,0.43705302]
[1756166971720,0.02532777,109850.0,109840.0,0.43905302]
[1756166972105,0.02532777,109850.0,109840.0,0.52593777]
[1756166972305,0.02532777,109850.0,109840.0,0.52993777]
[1756166972505,0.02532777,109850.0,109840.0,0.52793777]
[1756166972754,0.02532777,109850.0,109840.0,0.52393777]
[1756166972936,0.02532777,109850.0,109840.0,0.92393777]
[1756166973171,0.02429237,109890.0,109860.0,0.17296988]
[1756166973378,0.02429237,109910.0,109900.0,0.18198362]
[1756166973541,0.03063567,109910.0,109900.0,0.42529685]
[1756166973783,0.23581835,109910.0,109900.0,0.25202362]
[1756166973959,0.16030891,109910.0,109900.0,0.43118362]
[1756166974163,0.34398328,109910.0,109900.0,0.43118362]
[1756166974365,0.68227739,109910.0,109900.0,0.07004]
[1756166974519,0.68227739,109910.0,109900.0,0.24912]
[1756166974520,0.68235725,109910.0,109900.0,0.24912]
[1756166974722,0.68350113,109910.0,109900.0,0.07004]
[1756166975094,0.68350113,109910.0,109900.0,0.43321362]
[1756166975095,0.39937469,109910.0,109900.0,0.43321362]
[1756166975296,0.05135006,109910.0,109900.0,0.43619362]
[1756166975503,0.02698251,109910.0,109900.0,0.52307837]
[1756166975709,0.00748894,109910.0,109900.0,0.52307837]
[1756166975926,0.00114388,109910.0,109900.0,0.52307837]
[1756166976547,1e-08,109910.0,109900.0,0.84561112]
[1756166976920,0.05675973,109950.0,109940.0,0.1819174]
[1756166977091,0.34094145,109950.0,109940.0,0.24908]
[1756166977296,0.3148479,109950.0,109940.0,0.07004]
[1756166977497,0.6548479,109950.0,109940.0,0.24908]
[1756166977734,0.67210829,109950.0,109940.0,0.07004]
[1756166977938,0.67210829,109950.0,109940.0,0.24908]
[1756166978203,0.72074496,109950.0,109940.0,0.24908]
[1756166979046,0.72074496,109950.0,109940.0,0.25108]
[1756166979248,0.59957554,109950.0,109940.0,0.25108]
[1756166980642,5.64821221,109950.0,109940.0,0.18076]
[1756166981082,5.59957554,109950.0,109940.0,0.18076]
[1756166981277,5.62394664,109950.0,109940.0,0.18076]
[1756166981502,5.62393457,109950.0,109940.0,0.17976]
[1756166981702,5.59956345,109950.0,109940.0,0.17964]
[1756166981855,5.59956345,109950.0,109940.0,0.18064]
[1756166982062,5.59956345,109950.0,109940.0,0.17964]
[1756166982265,5.61379661,109950.0,109940.0,0.17864]
[1756166982690,5.59956345,109950.0,109940.0,0.17864]
[1756166982956,5.54132511,109950.0,109940.0,0.17864]
[1756166984307,0.18193395,109930.0,109920.0,0.25492931]
[1756166984517,0.18395395,109930.0,109920.0,0.248]
[1756166984818,0.18395395,109930.0,109920.0,0.07]
[1756166984819,0.52395395,109930.0,109920.0,0.07]
[1756166984955,0.52719395,109930.0,109920.0,0.07]
[1756166985166,0.52719395,109930.0,109920.0,0.24788]
[1756166985392,0.52719395,109930.0,109920.0,0.07]
[1756166985593,0.52719395,109930.0,109920.0,0.25304]
[1756166985800,0.52719395,109930.0,109920.0,0.25004]
[1756166986004,5.52719395,109930.0,109920.0,0.002]
[1756166986232,5.54408402,109930.0,109920.0,0.002]
[1756166986785,0.1819505,109920.0,109910.0,0.17792]
[1756166986999,5.1872105,109920.0,109910.0,0.17792]
[1756166987190,0.1839705,109920.0,109910.0,0.17792]
[1756166987389,0.18193395,109930.0,109920.0,0.1819505]
[1756166987614,0.18193395,109930.0,109910.0,0.36286706]
[1756166987822,0.00170731,109920.0,109910.0,0.36286706]
[1756166987998,0.18193489,109930.0,109920.0,0.1819505]
[1756166988204,0.18395489,109930.0,109910.0,0.36386706]
[1756166988403,0.18193489,109930.0,109920.0,0.00207]
[1756166988878,0.19426821,109940.0,109920.0,0.1840205]
[1756166989026,5.84,109930.0,109920.0,0.1870005]
[1756166989254,0.34,109930.0,109920.0,0.3644805]
[1756166989464,0.21939638,109950.0,109930.0,0.18193395]
[1756166989638,0.23629084,109950.0,109940.0,0.17744]
[1756166989888,0.5219174,109940.0,109930.0,0.07]
[1756166990126,0.5239374,109940.0,109930.0,0.2474]
[1756166990514,0.5219174,109940.0,109930.0,0.43140395]
[1756166990726,0.34,109940.0,109930.0,0.43140395]
[1756166990930,0.5219174,109940.0,109930.0,0.43140395]
[1756166991197,0.5229174,109940.0,109930.0,0.43140395]
[1756166991405,0.5249374,109940.0,109930.0,0.2474]
[1756166991613,0.341,109940.0,109930.0,0.43438395]
[1756166992066,0.001,109940.0,109930.0,0.43438395]
[1756166992277,0.001,109940.0,109930.0,0.5212687]
[1756166992480,0.002,109940.0,109930.0,0.5212687]
[1756166992898,0.002,109940.0,109930.0,0.3438687]
[1756166993120,0.002,109940.0,109930.0,0.5210687]
[1756166993121,0.001,109940.0,109930.0,0.5210687]
[1756166993367,0.00014386,109950.0,109940.0,0.1819174]
[1756166993594,0.00014386,109950.0,109940.0,0.1839874]
[1756166993806,0.00014386,109950.0,109940.0,0.1869674]
[1756166994643,0.01369088,109950.0,109940.0,0.1869674]
[1756166994862,0.01369088,109950.0,109940.0,0.1889674]